[Event "*** MasterClass Titled Tuesday Blitz"]
[Site "Chess.com"]
[Date "2017.12.12"]
[Round "3"]
[White "Kawhi_Leonard2"]
[Black "ohusbands"]
[Result "1-0"]
[WhiteElo "2262"]
[BlackElo "2349"]
[TimeControl "180+2"]
[EndTime "13:36:45 PST"]
[Termination "Kawhi_Leonard2 won by resignation"]

1. e4 {[%clk 0:03:01.9]} 1... c5 {[%clk 0:02:57.8]} 2. Nf3 {[%clk 0:03:02.6]}
2... d6 {[%clk 0:02:55.7]} 3. d4 {[%clk 0:03:03.6]} 3... cxd4 {[%clk 0:02:57.6]}
4. Nxd4 {[%clk 0:03:04.7]} 4... Nf6 {[%clk 0:02:54.4]} 5. Nc3 {[%clk 0:03:05.6]}
5... a6 {[%clk 0:02:56.3]} 6. h3 {[%clk 0:03:05.8]} 6... e5 {[%clk 0:02:55.8]}
7. Nde2 {[%clk 0:03:06.3]} 7... h5 {[%clk 0:02:56.4]} 8. Bg5 {[%clk 0:03:06]}
8... Be6 {[%clk 0:02:56.3]} 9. Nd5 {[%clk 0:03:04.3]} 9... Nbd7 {[%clk
0:02:56.4]} 10. Nec3 {[%clk 0:03:02]} 10... b5 {[%clk 0:02:55.3]} 11. Nxf6+
{[%clk 0:02:57.8]} 11... gxf6 {[%clk 0:02:54.3]} 12. Be3 {[%clk 0:02:57.5]}
12... f5 {[%clk 0:02:54.4]} 13. exf5 {[%clk 0:02:55.1]} 13... Bxf5 {[%clk
0:02:56.3]} 14. Bd3 {[%clk 0:02:55.4]} 14... Be6 {[%clk 0:02:44.7]} 15. Be4
{[%clk 0:02:54.3]} 15... Rc8 {[%clk 0:02:45.8]} 16. a4 {[%clk 0:02:49.1]} 16...
b4 {[%clk 0:02:38.7]} 17. Nd5 {[%clk 0:02:50.1]} 17... Bxd5 {[%clk 0:02:24.1]}
18. Bxd5 {[%clk 0:02:46.3]} 18... Nf6 {[%clk 0:02:25.4]} 19. Bg5 {[%clk
0:02:20.3]} 19... Be7 {[%clk 0:02:25]} 20. Bxf6 {[%clk 0:02:18.7]} 20... Bxf6
{[%clk 0:02:26.9]} 21. O-O {[%clk 0:02:14.4]} 21... Qb6 {[%clk 0:02:25]} 22. Qf3
{[%clk 0:02:05.6]} 22... Ke7 {[%clk 0:02:24]} 23. c4 {[%clk 0:02:04]} 23... h4
{[%clk 0:02:11.3]} 24. a5 {[%clk 0:02:01.5]} 24... Qa7 {[%clk 0:01:59.1]} 25.
Ra4 {[%clk 0:01:40.5]} 25... Rb8 {[%clk 0:01:53.7]} 26. b3 {[%clk 0:01:33.9]}
26... Rhg8 {[%clk 0:01:53.1]} 27. Re1 {[%clk 0:01:28.1]} 27... Rg6 {[%clk
0:01:48.8]} 28. Re4 {[%clk 0:01:28.5]} 28... Rbg8 {[%clk 0:01:38.4]} 29. Rg4
{[%clk 0:01:26.1]} 29... Rxg4 {[%clk 0:01:33.5]} 30. hxg4 {[%clk 0:01:27.2]}
30... Qc5 {[%clk 0:01:23.8]} 31. Qf5 {[%clk 0:00:45.6]} 31... Rg5 {[%clk
0:01:16.9]} 32. Qh7 {[%clk 0:00:45.9]} 32... Rg7 {[%clk 0:01:18.5]} 33. Qh5
{[%clk 0:00:45.2]} 33... e4 {[%clk 0:01:07.6]} 34. Bxe4 {[%clk 0:00:45.1]} 34...
Qxh5 {[%clk 0:01:00.3]} 35. gxh5 {[%clk 0:00:45.2]} 35... Bc3 {[%clk 0:00:57.6]}
36. Ra2 {[%clk 0:00:43.2]} 36... Rg5 {[%clk 0:00:57.7]} 37. Bf3 {[%clk
0:00:41.5]} 37... Bd4 {[%clk 0:00:43.8]} 38. Kf1 {[%clk 0:00:39.7]} 38... Kd7
{[%clk 0:00:41.9]} 39. Bb7 {[%clk 0:00:39.8]} 39... Rxh5 {[%clk 0:00:41.6]} 40.
Bxa6 {[%clk 0:00:40.6]} 40... Kc7 {[%clk 0:00:41.7]} 41. Bb5 {[%clk 0:00:39.6]}
41... h3 {[%clk 0:00:40]} 42. gxh3 {[%clk 0:00:35]} 42... Rxh3 {[%clk
0:00:41.9]} 43. a6 {[%clk 0:00:31.3]} 43... Ba7 {[%clk 0:00:41.2]} 44. Rb2
{[%clk 0:00:21.9]} 44... Kb6 {[%clk 0:00:32.8]} 45. Kg2 {[%clk 0:00:22.4]} 45...
Rc3 {[%clk 0:00:33.4]} 46. Re2 {[%clk 0:00:18]} 46... Rxb3 {[%clk 0:00:30.5]}
47. Re7 {[%clk 0:00:18.6]} 47... Ra3 {[%clk 0:00:22.6]} 48. Rb7+ {[%clk
0:00:19.1]} 48... Kc5 {[%clk 0:00:24]} 49. Rxa7 {[%clk 0:00:20.3]} 49... b3
{[%clk 0:00:25.5]} 50. Rb7 {[%clk 0:00:18.6]} 50... b2 {[%clk 0:00:25]} 51. Be8
{[%clk 0:00:18.8]} 51... Rxa6 {[%clk 0:00:21.8]} 52. Rxb2 {[%clk 0:00:19.2]}
52... Ra7 {[%clk 0:00:22]} 53. Bb5 {[%clk 0:00:17.7]} 53... Rb7 {[%clk
0:00:22.1]} 54. Rd2 {[%clk 0:00:17.6]} 54... Rb6 {[%clk 0:00:21.4]} 55. Rd5+
{[%clk 0:00:18.5]} 55... Kb4 {[%clk 0:00:22.7]} 56. Kf3 {[%clk 0:00:19.1]} 56...
Kc3 {[%clk 0:00:20.9]} 57. Ke4 {[%clk 0:00:20.1]} 57... Rb7 {[%clk 0:00:21.7]}
58. Rxd6 {[%clk 0:00:20.4]} 58... Re7+ {[%clk 0:00:22.6]} 59. Kf3 {[%clk
0:00:21.7]} 59... Re5 {[%clk 0:00:22.9]} 60. Rf6 {[%clk 0:00:22.5]} 1-0

[Event "*** MasterClass Titled Tuesday Blitz"]
[Site "Chess.com"]
[Date "2017.12.12"]
[Round "3"]
[White "Kacparov"]
[Black "PulpanJ"]
[Result "1/2-1/2"]
[WhiteElo "2589"]
[BlackElo "2457"]
[TimeControl "180+2"]
[EndTime "13:36:46 PST"]
[Termination "Game drawn by repetition"]

1. e4 {[%clk 0:02:53]} 1... c5 {[%clk 0:02:46.8]} 2. Nf3 {[%clk 0:02:52.2]} 2...
d6 {[%clk 0:02:45.1]} 3. d4 {[%clk 0:02:53.2]} 3... cxd4 {[%clk 0:02:46.4]} 4.
Nxd4 {[%clk 0:02:55.1]} 4... Nf6 {[%clk 0:02:47.9]} 5. f3 {[%clk 0:02:54.7]}
5... e5 {[%clk 0:02:45.4]} 6. Nb3 {[%clk 0:02:55.7]} 6... d5 {[%clk 0:02:44.7]}
7. Bg5 {[%clk 0:02:55.5]} 7... Be6 {[%clk 0:02:40.1]} 8. Bxf6 {[%clk 0:02:56.3]}
8... gxf6 {[%clk 0:02:36]} 9. exd5 {[%clk 0:02:57.4]} 9... Qxd5 {[%clk
0:02:36.2]} 10. Qxd5 {[%clk 0:02:52.9]} 10... Bxd5 {[%clk 0:02:38.1]} 11. Nc3
{[%clk 0:02:54.3]} 11... Bc6 {[%clk 0:02:36.7]} 12. Nb5 {[%clk 0:02:52.2]} 12...
Na6 {[%clk 0:02:31.3]} 13. O-O-O {[%clk 0:02:50.8]} 13... Ke7 {[%clk 0:02:21.5]}
14. Nd6 {[%clk 0:02:46.1]} 14... Rb8 {[%clk 0:02:22]} 15. Na5 {[%clk 0:02:29.1]}
15... Bh6+ {[%clk 0:02:19.4]} 16. Kb1 {[%clk 0:02:29.6]} 16... Rhd8 {[%clk
0:02:19.7]} 17. Nf5+ {[%clk 0:02:06]} 17... Ke6 {[%clk 0:02:17.8]} 18. Bxa6
{[%clk 0:02:04.7]} 18... Kxf5 {[%clk 0:02:13.6]} 19. Nxc6 {[%clk 0:01:58]} 19...
bxc6 {[%clk 0:02:09.7]} 20. Bd3+ {[%clk 0:01:58.8]} 20... Ke6 {[%clk 0:02:10.6]}
21. Bxh7 {[%clk 0:01:56.8]} 21... Bd2 {[%clk 0:02:12]} 22. Bd3 {[%clk
0:01:55.5]} 22... Bc3 {[%clk 0:02:11.7]} 23. Bc4+ {[%clk 0:01:56.1]} 23... Ke7
{[%clk 0:02:11.7]} 24. Bb3 {[%clk 0:01:55.2]} 24... Rxd1+ {[%clk 0:02:07.9]} 25.
Rxd1 {[%clk 0:01:55.4]} 25... Bd4 {[%clk 0:02:09.8]} 26. c3 {[%clk 0:01:56.3]}
26... Be3 {[%clk 0:02:10.8]} 27. Re1 {[%clk 0:01:55.7]} 27... Bc5 {[%clk
0:02:08.5]} 28. h4 {[%clk 0:01:28.4]} 28... Bf2 {[%clk 0:02:04.3]} 29. Rh1
{[%clk 0:01:22.5]} 29... Bg3 {[%clk 0:02:02.4]} 30. h5 {[%clk 0:01:21.7]} 30...
Rh8 {[%clk 0:02:03.1]} 31. Bc2 {[%clk 0:01:18.9]} 31... Bf4 {[%clk 0:01:59.3]}
32. Be4 {[%clk 0:01:11.9]} 32... c5 {[%clk 0:01:58.5]} 33. g4 {[%clk 0:01:12.4]}
33... Bh6 {[%clk 0:01:51.6]} 34. a4 {[%clk 0:01:04.5]} 34... Rd8 {[%clk
0:01:48.8]} 35. Ka2 {[%clk 0:01:04.3]} 35... c4 {[%clk 0:01:48.8]} 36. a5 {[%clk
0:01:02.8]} 36... Rb8 {[%clk 0:01:47.4]} 37. Rd1 {[%clk 0:00:55.2]} 37... Rb5
{[%clk 0:01:45.9]} 38. Rd5 {[%clk 0:00:56.1]} 38... Rb8 {[%clk 0:01:38.3]} 39.
Rc5 {[%clk 0:00:56.2]} 39... Bc1 {[%clk 0:01:37.7]} 40. Rc7+ {[%clk 0:00:57.2]}
40... Kd6 {[%clk 0:01:38.4]} 41. Rb7 {[%clk 0:00:58.3]} 41... Rxb7 {[%clk
0:01:39]} 42. Bxb7 {[%clk 0:00:59]} 42... f5 {[%clk 0:01:38.9]} 43. gxf5 {[%clk
0:00:58.2]} 43... f6 {[%clk 0:01:40.1]} 44. Kb1 {[%clk 0:00:55.2]} 44... Bh6
{[%clk 0:01:38.3]} 45. Ba6 {[%clk 0:00:53.4]} 45... Kc5 {[%clk 0:01:38.8]} 46.
Ka2 {[%clk 0:00:54.5]} 46... Bg5 {[%clk 0:01:38.6]} 47. Ka3 {[%clk 0:00:54.8]}
47... Bc1 {[%clk 0:01:39.1]} 48. Ka4 {[%clk 0:00:39.2]} 48... Bh6 {[%clk
0:01:38.1]} 49. Bc8 {[%clk 0:00:39.6]} 49... Bc1 {[%clk 0:01:37.9]} 50. Be6
{[%clk 0:00:40.4]} 50... Bd2 {[%clk 0:01:35.9]} 51. b4+ {[%clk 0:00:21.6]} 51...
cxb3 {[%clk 0:01:36.9]} 52. Kxb3 {[%clk 0:00:22.6]} 52... Bh6 {[%clk 0:01:37.5]}
53. Kc2 {[%clk 0:00:20.5]} 53... Bf4 {[%clk 0:01:38.6]} 54. Kd3 {[%clk
0:00:21.9]} 54... Bh6 {[%clk 0:01:40.5]} 55. Ke4 {[%clk 0:00:23.2]} 55... Bf4
{[%clk 0:01:41.3]} 56. Bf7 {[%clk 0:00:24.4]} 56... Bh6 {[%clk 0:01:40.9]} 57.
Be8 {[%clk 0:00:25.8]} 57... Bf4 {[%clk 0:01:41.7]} 58. Bd7 {[%clk 0:00:27.2]}
58... Bh6 {[%clk 0:01:43.1]} 59. Bc8 {[%clk 0:00:28.7]} 59... Bf4 {[%clk
0:01:45]} 60. Ba6 {[%clk 0:00:30]} 60... Bh6 {[%clk 0:01:46.4]} 61. Bf1 {[%clk
0:00:31.6]} 61... Bf4 {[%clk 0:01:47.2]} 62. Be2 {[%clk 0:00:33]} 62... Bh6
{[%clk 0:01:48.6]} 63. Bd1 {[%clk 0:00:34.4]} 63... Bd2 {[%clk 0:01:48]} 64. Bb3
{[%clk 0:00:35.5]} 64... Bh6 {[%clk 0:01:47.8]} 65. Bf7 {[%clk 0:00:35.5]} 65...
Bd2 {[%clk 0:01:48.9]} 66. Kd3 {[%clk 0:00:36.5]} 66... Bh6 {[%clk 0:01:50.1]}
67. a6 {[%clk 0:00:31.5]} 67... Bg5 {[%clk 0:01:49.7]} 68. Ke4 {[%clk
0:00:32.3]} 68... Bh6 {[%clk 0:01:50.9]} 69. Be6 {[%clk 0:00:23.6]} 69... Bf4
{[%clk 0:01:51.7]} 70. Bf7 {[%clk 0:00:21.7]} 70... Bh6 {[%clk 0:01:53.6]} 71.
Be6 {[%clk 0:00:23]} 71... Bf4 {[%clk 0:01:54]} 72. Bf7 {[%clk 0:00:24.3]} 72...
Bh6 {[%clk 0:01:55.4]} 73. Be6 {[%clk 0:00:25.6]} 73... Bf4 {[%clk 0:01:56.9]}
74. Bf7 {[%clk 0:00:26.7]} 74... Bh6 {[%clk 0:01:58.4]} 75. Be6 {[%clk
0:00:27.7]} 75... Bf4 {[%clk 0:01:59.9]} 76. Bf7 {[%clk 0:00:29]} 76... Bh6
{[%clk 0:02:01.4]} 1/2-1/2

[Event "*** MasterClass Titled Tuesday Blitz"]
[Site "Chess.com"]
[Date "2017.12.12"]
[Round "3"]
[White "StoreySniper"]
[Black "Schemato"]
[Result "0-1"]
[WhiteElo "2297"]
[BlackElo "2315"]
[TimeControl "180+2"]
[EndTime "13:36:53 PST"]
[Termination "Schemato won on time"]

1. e4 {[%clk 0:02:57.4]} 1... e6 {[%clk 0:03:00.3]} 2. d3 {[%clk 0:02:57.2]}
2... c5 {[%clk 0:03:00.5]} 3. Nd2 {[%clk 0:02:58.6]} 3... Nc6 {[%clk 0:03:01.6]}
4. Ngf3 {[%clk 0:03:00]} 4... g6 {[%clk 0:03:00.9]} 5. g3 {[%clk 0:03:01.3]}
5... Bg7 {[%clk 0:03:01.4]} 6. Bg2 {[%clk 0:03:02.8]} 6... Nge7 {[%clk
0:03:02.5]} 7. O-O {[%clk 0:03:03.5]} 7... O-O {[%clk 0:03:03.4]} 8. Re1 {[%clk
0:03:04.2]} 8... d6 {[%clk 0:03:01.9]} 9. h4 {[%clk 0:03:04.2]} 9... h6 {[%clk
0:03:00.9]} 10. Nf1 {[%clk 0:03:05.1]} 10... e5 {[%clk 0:02:57.9]} 11. N1h2
{[%clk 0:03:04]} 11... Be6 {[%clk 0:02:56.3]} 12. c3 {[%clk 0:02:54.2]} 12...
Qd7 {[%clk 0:02:53.6]} 13. Be3 {[%clk 0:02:54.4]} 13... b6 {[%clk 0:02:51.4]}
14. d4 {[%clk 0:02:53.6]} 14... exd4 {[%clk 0:02:50]} 15. cxd4 {[%clk
0:02:54.2]} 15... Bh3 {[%clk 0:02:44.9]} 16. dxc5 {[%clk 0:02:50.6]} 16... dxc5
{[%clk 0:02:44.6]} 17. Qxd7 {[%clk 0:02:39]} 17... Bxd7 {[%clk 0:02:44.3]} 18.
Rad1 {[%clk 0:02:38.6]} 18... Rad8 {[%clk 0:02:43.1]} 19. b3 {[%clk 0:02:38.1]}
19... Be6 {[%clk 0:02:36.8]} 20. Nd2 {[%clk 0:02:30.8]} 20... Nb4 {[%clk
0:02:30.5]} 21. Nc4 {[%clk 0:02:19.8]} 21... Nxa2 {[%clk 0:02:20.8]} 22. e5
{[%clk 0:02:10.6]} 22... Nb4 {[%clk 0:02:09.8]} 23. Rxd8 {[%clk 0:01:54.3]}
23... Rxd8 {[%clk 0:02:09.8]} 24. Bf1 {[%clk 0:01:48.6]} 24... Nc2 {[%clk
0:02:02.3]} 25. Rc1 {[%clk 0:01:46.1]} 25... Nxe3 {[%clk 0:02:02.5]} 26. fxe3
{[%clk 0:01:47.4]} 26... Nc6 {[%clk 0:02:00.1]} 27. Nf3 {[%clk 0:01:44.2]} 27...
Bxc4 {[%clk 0:01:55.1]} 28. Bxc4 {[%clk 0:01:45]} 28... Nxe5 {[%clk 0:01:56.1]}
29. Nxe5 {[%clk 0:01:43.8]} 29... Bxe5 {[%clk 0:01:58]} 30. Kf2 {[%clk
0:01:43.7]} 30... Rd2+ {[%clk 0:01:52.8]} 31. Kf3 {[%clk 0:01:44.7]} 31... Kg7
{[%clk 0:01:49.6]} 32. Rf1 {[%clk 0:01:43.6]} 32... f6 {[%clk 0:01:32.5]} 33. g4
{[%clk 0:01:40.8]} 33... Rh2 {[%clk 0:01:16.6]} 34. Rd1 {[%clk 0:01:37.7]} 34...
Rh3+ {[%clk 0:01:15.3]} 35. Ke4 {[%clk 0:01:38.4]} 35... Rxh4 {[%clk 0:01:15.3]}
36. Rd7+ {[%clk 0:01:39]} 36... Kf8 {[%clk 0:01:15.7]} 37. Kd5 {[%clk 0:01:37]}
37... Rxg4 {[%clk 0:01:12.5]} 38. Ke6 {[%clk 0:01:38]} 38... Rxc4 {[%clk
0:01:00.3]} 39. bxc4 {[%clk 0:01:29.1]} 39... h5 {[%clk 0:01:00.4]} 40. Rxa7
{[%clk 0:01:10.8]} 40... h4 {[%clk 0:01:01.1]} 41. Rh7 {[%clk 0:00:58.2]} 41...
g5 {[%clk 0:01:02]} 42. Kf5 {[%clk 0:00:55.5]} 42... Kg8 {[%clk 0:01:00]} 43.
Kg6 {[%clk 0:00:34.9]} 43... Kf8 {[%clk 0:00:31]} 44. e4 {[%clk 0:00:34.2]}
44... Ke8 {[%clk 0:00:22.5]} 45. Kf5 {[%clk 0:00:31.6]} 45... Kd8 {[%clk
0:00:19.6]} 46. Kg4 {[%clk 0:00:29.8]} 46... Kc8 {[%clk 0:00:18.6]} 47. Kf5
{[%clk 0:00:28.7]} 47... b5 {[%clk 0:00:18.2]} 48. cxb5 {[%clk 0:00:28.1]} 48...
c4 {[%clk 0:00:19.4]} 49. Rh8+ {[%clk 0:00:19.3]} 49... Kb7 {[%clk 0:00:19.9]}
50. Rh7+ {[%clk 0:00:10.7]} 50... Kb6 {[%clk 0:00:20.6]} 51. Kg4 {[%clk
0:00:06.9]} 51... c3 {[%clk 0:00:21.4]} 52. Rh8 {[%clk 0:00:05.3]} 52... c2
{[%clk 0:00:20.1]} 53. Rc8 {[%clk 0:00:06.1]} 53... Bc7 {[%clk 0:00:20.5]} 0-1

[Event "*** MasterClass Titled Tuesday Blitz"]
[Site "Chess.com"]
[Date "2017.12.12"]
[Round "3"]
[White "MITerryble"]
[Black "Aygehovit1992"]
[Result "1-0"]
[WhiteElo "2652"]
[BlackElo "2445"]
[TimeControl "180+2"]
[EndTime "13:37:25 PST"]
[Termination "MITerryble won by resignation"]

1. d4 {[%clk 0:03:01]} 1... Nf6 {[%clk 0:02:57.1]} 2. Bg5 {[%clk 0:03:00.3]}
2... Ne4 {[%clk 0:02:57.5]} 3. Bf4 {[%clk 0:03:01.4]} 3... c5 {[%clk 0:02:58.5]}
4. f3 {[%clk 0:03:02.2]} 4... Nf6 {[%clk 0:02:49.8]} 5. dxc5 {[%clk 0:03:01.5]}
5... Qa5+ {[%clk 0:02:45.4]} 6. Nc3 {[%clk 0:03:02]} 6... Qxc5 {[%clk
0:02:46.2]} 7. Qd2 {[%clk 0:03:03.3]} 7... Nc6 {[%clk 0:02:42.6]} 8. e4 {[%clk
0:03:02.1]} 8... d6 {[%clk 0:02:36.4]} 9. Nb5 {[%clk 0:03:01.6]} 9... Qb6 {[%clk
0:02:28.4]} 10. c4 {[%clk 0:03:02.3]} 10... Qd8 {[%clk 0:02:06.9]} 11. Ne2
{[%clk 0:02:49.7]} 11... g6 {[%clk 0:02:05.8]} 12. Rd1 {[%clk 0:02:40.6]} 12...
Bd7 {[%clk 0:02:04.4]} 13. h4 {[%clk 0:02:02.7]} 13... Bg7 {[%clk 0:02:02.9]}
14. Ng3 {[%clk 0:01:55.5]} 14... h5 {[%clk 0:02:02.7]} 15. Be2 {[%clk
0:01:55.8]} 15... a6 {[%clk 0:01:25.5]} 16. Nc3 {[%clk 0:01:56]} 16... Rc8
{[%clk 0:01:26.2]} 17. O-O {[%clk 0:01:36.1]} 17... Ne5 {[%clk 0:01:03]} 18. b3
{[%clk 0:01:33.7]} 18... O-O {[%clk 0:00:56.1]} 19. Be3 {[%clk 0:01:25.3]} 19...
Bc6 {[%clk 0:00:46.8]} 20. Rc1 {[%clk 0:01:22.2]} 20... Qd7 {[%clk 0:00:45.1]}
21. a4 {[%clk 0:01:16.4]} 21... Qd8 {[%clk 0:00:38.1]} 22. Rfd1 {[%clk
0:01:06.2]} 22... Kh7 {[%clk 0:00:35.6]} 23. b4 {[%clk 0:00:50.4]} 23... Qc7
{[%clk 0:00:31.7]} 24. a5 {[%clk 0:00:48]} 24... Qb8 {[%clk 0:00:26.8]} 25. Nf1
{[%clk 0:00:44.7]} 25... Bd7 {[%clk 0:00:27.4]} 26. Qa2 {[%clk 0:00:44.8]} 26...
Be6 {[%clk 0:00:28.1]} 27. Nd5 {[%clk 0:00:45.8]} 27... Nxd5 {[%clk 0:00:27]}
28. cxd5 {[%clk 0:00:45.3]} 28... Bd7 {[%clk 0:00:27.8]} 29. Nd2 {[%clk
0:00:40.2]} 29... Bf6 {[%clk 0:00:26.9]} 30. g3 {[%clk 0:00:37]} 30... Bb5
{[%clk 0:00:27.9]} 31. Bxb5 {[%clk 0:00:32.8]} 31... axb5 {[%clk 0:00:29.8]} 32.
Qb3 {[%clk 0:00:32.8]} 32... Bg7 {[%clk 0:00:22.9]} 33. Kg2 {[%clk 0:00:32.5]}
33... Rxc1 {[%clk 0:00:21.7]} 34. Rxc1 {[%clk 0:00:33.2]} 34... f5 {[%clk
0:00:22.9]} 35. exf5 {[%clk 0:00:33.1]} 35... Rxf5 {[%clk 0:00:23.5]} 36. Bf4
{[%clk 0:00:21.3]} 36... Nd7 {[%clk 0:00:18.1]} 37. Ne4 {[%clk 0:00:21.6]} 37...
Bf6 {[%clk 0:00:11.6]} 38. Qd3 {[%clk 0:00:16.9]} 38... Ne5 {[%clk 0:00:12.2]}
39. Bxe5 {[%clk 0:00:17.3]} 39... Rxe5 {[%clk 0:00:12.2]} 40. Qxb5 {[%clk
0:00:17.9]} 40... Qa8 {[%clk 0:00:06.6]} 41. Qd7 {[%clk 0:00:17.9]} 41... Qf8
{[%clk 0:00:04.8]} 42. Rc7 {[%clk 0:00:15.1]} 42... Kh6 {[%clk 0:00:04.7]} 43.
Rc8 {[%clk 0:00:07.7]} 43... Qf7 {[%clk 0:00:04.7]} 44. Qxb7 {[%clk 0:00:08.9]}
44... Bxh4 {[%clk 0:00:03.5]} 45. gxh4 {[%clk 0:00:05.4]} 45... Qf4 {[%clk
0:00:03.5]} 46. Qb6 {[%clk 0:00:06.4]} 46... Rxe4 {[%clk 0:00:03.5]} 47. fxe4
{[%clk 0:00:06.9]} 47... Qxe4+ {[%clk 0:00:04.8]} 48. Kf2 {[%clk 0:00:07.9]}
48... Qf4+ {[%clk 0:00:04.3]} 49. Ke1 {[%clk 0:00:08.9]} 49... Qe4+ {[%clk
0:00:02.9]} 50. Kd2 {[%clk 0:00:09.7]} 50... Qg2+ {[%clk 0:00:04]} 51. Kc1
{[%clk 0:00:09.9]} 51... Qf1+ {[%clk 0:00:04.3]} 52. Kb2 {[%clk 0:00:10.8]}
52... Qg2+ {[%clk 0:00:05.1]} 53. Rc2 {[%clk 0:00:11.4]} 53... Qxd5 {[%clk
0:00:05.5]} 54. Qe3+ {[%clk 0:00:11.9]} 1-0

[Event "*** MasterClass Titled Tuesday Blitz"]
[Site "Chess.com"]
[Date "2017.12.12"]
[Round "3"]
[White "Kaphrep"]
[Black "daro94"]
[Result "1/2-1/2"]
[WhiteElo "2595"]
[BlackElo "2652"]
[TimeControl "180+2"]
[EndTime "13:37:28 PST"]
[Termination "Game drawn by agreement"]

1. d4 {[%clk 0:02:17.6]} 1... Nf6 {[%clk 0:02:56.3]} 2. Nf3 {[%clk 0:02:16.9]}
2... d5 {[%clk 0:02:56.7]} 3. c3 {[%clk 0:02:16.4]} 3... g6 {[%clk 0:02:55.5]}
4. Bf4 {[%clk 0:02:12.7]} 4... Bg7 {[%clk 0:02:56.8]} 5. e3 {[%clk 0:02:13.3]}
5... O-O {[%clk 0:02:58.3]} 6. h3 {[%clk 0:02:13.8]} 6... b6 {[%clk 0:02:59.6]}
7. Nbd2 {[%clk 0:02:11.5]} 7... Bb7 {[%clk 0:03:00.8]} 8. Be2 {[%clk 0:02:10.2]}
8... c5 {[%clk 0:03:01.9]} 9. O-O {[%clk 0:02:09.2]} 9... Nc6 {[%clk 0:03:03.2]}
10. Ne5 {[%clk 0:02:07.3]} 10... Nd7 {[%clk 0:03:03.8]} 11. Nxd7 {[%clk
0:02:04.5]} 11... Qxd7 {[%clk 0:03:04.8]} 12. dxc5 {[%clk 0:01:57.2]} 12... e5
{[%clk 0:03:02.9]} 13. Bg3 {[%clk 0:01:55.9]} 13... bxc5 {[%clk 0:03:03.6]} 14.
Qa4 {[%clk 0:01:47.9]} 14... Rfd8 {[%clk 0:02:53.9]} 15. Qa3 {[%clk 0:01:40.6]}
15... Bf8 {[%clk 0:02:40.8]} 16. Bh4 {[%clk 0:01:21.9]} 16... c4 {[%clk
0:02:35.2]} 17. Qa4 {[%clk 0:01:22.9]} 17... Be7 {[%clk 0:01:54.5]} 18. Bxe7
{[%clk 0:01:20.2]} 18... Nxe7 {[%clk 0:01:56.4]} 19. Qxd7 {[%clk 0:01:20]} 19...
Rxd7 {[%clk 0:01:58.3]} 20. Rfd1 {[%clk 0:01:15.7]} 20... Rad8 {[%clk
0:01:53.9]} 21. b3 {[%clk 0:01:13.3]} 21... cxb3 {[%clk 0:01:45.8]} 22. axb3
{[%clk 0:01:15.2]} 22... Nc6 {[%clk 0:01:30.6]} 23. Bb5 {[%clk 0:01:13.6]} 23...
Rc7 {[%clk 0:01:23.3]} 24. Nf3 {[%clk 0:01:12.4]} 24... f6 {[%clk 0:01:22.9]}
25. c4 {[%clk 0:00:55.9]} 25... d4 {[%clk 0:00:42.2]} 26. exd4 {[%clk
0:00:54.4]} 26... e4 {[%clk 0:00:40]} 27. Bxc6 {[%clk 0:00:42.2]} 27... Bxc6
{[%clk 0:00:41.4]} 28. Ne1 {[%clk 0:00:38.3]} 28... Rb8 {[%clk 0:00:41.5]} 29.
d5 {[%clk 0:00:38.4]} 29... Be8 {[%clk 0:00:42.4]} 30. Ra3 {[%clk 0:00:37.9]}
30... Rcb7 {[%clk 0:00:42.8]} 31. c5 {[%clk 0:00:37.8]} 31... Rxb3 {[%clk
0:00:41.6]} 32. Rxb3 {[%clk 0:00:39.7]} 32... Rxb3 {[%clk 0:00:42.8]} 33. c6
{[%clk 0:00:35.8]} 33... Rc3 {[%clk 0:00:17.3]} 34. d6 {[%clk 0:00:35.1]} 34...
Bxc6 {[%clk 0:00:16.9]} 35. d7 {[%clk 0:00:36.3]} 35... Bxd7 {[%clk 0:00:18.1]}
36. Rxd7 {[%clk 0:00:38.2]} 36... a5 {[%clk 0:00:19.6]} 37. Ra7 {[%clk
0:00:38.6]} 37... Rc5 {[%clk 0:00:18.4]} 38. Kf1 {[%clk 0:00:39.3]} 38... f5
{[%clk 0:00:19.6]} 39. Ke2 {[%clk 0:00:38.4]} 39... f4 {[%clk 0:00:16.7]} 40. f3
{[%clk 0:00:27.4]} 40... e3 {[%clk 0:00:17.5]} 41. Nd3 {[%clk 0:00:16]} 41...
Rc2+ {[%clk 0:00:18.3]} 42. Kf1 {[%clk 0:00:17.3]} 42... g5 {[%clk 0:00:16.4]}
43. Rxa5 {[%clk 0:00:18]} 43... h6 {[%clk 0:00:18]} 44. h4 {[%clk 0:00:19.4]}
44... Rd2 {[%clk 0:00:16.5]} 45. Rd5 {[%clk 0:00:15.2]} 45... Rd1+ {[%clk
0:00:16.4]} 46. Ke2 {[%clk 0:00:16]} 46... Rd2+ {[%clk 0:00:18]} 47. Ke1 {[%clk
0:00:17.4]} 47... Rxg2 {[%clk 0:00:19.2]} 48. hxg5 {[%clk 0:00:18.7]} 48... hxg5
{[%clk 0:00:20.8]} 49. Rd7 {[%clk 0:00:18.5]} 49... Rd2 {[%clk 0:00:19.5]} 50.
Ne5 {[%clk 0:00:17.6]} 50... Rf2 {[%clk 0:00:18.8]} 51. Rc7 {[%clk 0:00:13.9]}
51... Kf8 {[%clk 0:00:16.1]} 52. Rf7+ {[%clk 0:00:14.4]} 52... Kg8 {[%clk
0:00:15.4]} 53. Rc7 {[%clk 0:00:16.3]} 53... Kf8 {[%clk 0:00:16.7]} 54. Ra7
{[%clk 0:00:14.3]} 54... Kg8 {[%clk 0:00:14.8]} 55. Rf7 {[%clk 0:00:15.2]} 55...
Rg2 {[%clk 0:00:13.7]} 56. Re7 {[%clk 0:00:13.5]} 56... Rf2 {[%clk 0:00:14.5]}
57. Rd7 {[%clk 0:00:14.4]} 57... Kf8 {[%clk 0:00:14.6]} 58. Rh7 {[%clk
0:00:14.9]} 58... Kg8 {[%clk 0:00:14.1]} 59. Rh5 {[%clk 0:00:15.9]} 59... Kg7
{[%clk 0:00:10.3]} 60. Rxg5+ {[%clk 0:00:16.6]} 60... Kf6 {[%clk 0:00:11.9]} 61.
Rh5 {[%clk 0:00:17.3]} 61... Ra2 {[%clk 0:00:12.6]} 62. Ng4+ {[%clk 0:00:12.7]}
62... Kg6 {[%clk 0:00:10.9]} 63. Rd5 {[%clk 0:00:13.6]} 63... Ra1+ {[%clk
0:00:11.2]} 64. Rd1 {[%clk 0:00:12]} 64... Ra2 {[%clk 0:00:12.7]} 65. Nxe3
{[%clk 0:00:07.9]} 65... fxe3 {[%clk 0:00:13.8]} 66. Rd3 {[%clk 0:00:09.5]}
66... Kf5 {[%clk 0:00:12.5]} 67. Rxe3 {[%clk 0:00:10.8]} 67... Kf4 {[%clk
0:00:13.7]} 1/2-1/2